Cogmind - Beta 13 @@@ ROGUE MODE // 2024.06.27 @ 13:48:53 Player: Spoodle Result: Destroyed by D-53 Grenadier with Mini Grenade Launcher Performance ------------- Evolutions (0) 0 Regions Visited (4) 800 Robots Destroyed (17) 85 Value Destroyed (297) 297 Prototype IDs (4) 80 Alien Tech Used (0) 0 Bonus (173) 173 TOTAL SCORE: 1435 Bonus ------- Follower Combat Kills 173 Cogmind --------- Core Integrity 0/250 Matter 248/300 Energy 80/100 System Corruption 0% Temperature Cool (0) Movement Treading (320) Ox2 Location -9/Mines Parts ------- > --- POWER (1) -------- (None) > --- PROPULSION (2) --- Light Treads > --- UTILITY (2) ------ High-capacity Storage Unit Signal Interpreter > --- WEAPON (2) ------- Gauss Rifle > --- INVENTORY (20) --- Ion Engine Light Treads Heat Sink Heat Sink Medium Storage Unit High-capacity Matter Pod (200) Makeshift Sensor Array Makeshift Sensor Array Autogun Autogun Autogun Grenade Launcher Katana Peak State ------------ > --- POWER ------------ Ion Engine > --- PROPULSION ------- Light Treads Light Treads > --- UTILITY ---------- High-capacity Storage Unit Signal Interpreter > --- WEAPON ----------- Autogun Gauss Rifle > --- INVENTORY -------- Ion Engine Light Treads Light Treads Heat Sink Heat Sink Medium Storage Unit High-capacity Matter Pod Makeshift Sensor Array Makeshift Sensor Array Autogun Autogun Autogun Grenade Launcher Katana [Rating: 14] Favorites ----------- Power Ion Engine Engine Ion Engine Propulsion Light Treads Treads Light Treads Leg Aluminum Leg Wheel Wheel Utility Signal Interpreter Device Seismic Detector Storage Medium Storage Unit Processor Signal Interpreter Weapon Autogun Energy Gun Small Laser Ballistic Gun Autogun Launcher Grenade Launcher Slashing Weapon Mining Claw Build | -11 -10 -10 -10 -9 ------- Run | Yrd Mat Min Exi Min Slots Evolved . | . . . . . Power . | . . . . . Propulsion . | . . . . . Utility . | . . . . . Weapon . | . . . . . Parts Attached 36 | 7 22 . 4 3 Power 2 | 1 1 . . . Engine 2 | 1 1 . . . Core . | . . . . . Reactor . | . . . . . Propulsion 11 | 2 6 . 2 1 Treads 8 | 2 3 . 2 1 Leg 1 | . 1 . . . Wheel 2 | . 2 . . . Hover . | . . . . . Flight . | . . . . . Utility 5 | 2 2 . . 1 Device 1 | 1 . . . . Storage 3 | 1 1 . . 1 Processor 1 | . 1 . . . Hackware . | . . . . . Protection . | . . . . . Artifact . | . . . . . Weapon 18 | 2 13 . 2 1 Energy Gun 4 | 1 3 . . . Energy Cannon . | . . . . . Ballistic Gun 11 | 1 8 . 1 1 Ballistic Cannon . | . . . . . Launcher 1 | . 1 . . . Special Weapon . | . . . . . Impact Weapon . | . . . . . Slashing Weapon 2 | . 1 . 1 . Piercing Weapon . | . . . . . Special Melee Weapon . | . . . . . Unidentified Prototypes . | . . . . . Parts Lost 7 | . 3 . . 4 Power 2 | . 1 . . 1 Propulsion 3 | . 1 . . 2 Utility . | . . . . . Weapon 2 | . 1 . . 1 Highest Loss Streak 4 | . 2 . . 4 To Critical Strikes . | . . . . . Average Slot Usage (%) 99 | . 99 100 100 99 Engine 13 | . 13 14 14 13 Treads 19 | . 18 . 15 27 Leg 4 | . 9 . . . Wheel 4 | . . 28 12 . Device 3 | . 6 . . . Storage 14 | . 14 14 14 14 Processor 10 | . 7 14 14 14 Energy Gun 2 | . 6 . . . Ballistic Gun 21 | . 20 28 15 27 Slashing Weapon 3 | . . . 12 . Naked Turns . | . . . . . Heaviest Build 51 | 12 22 21 21 51 Greatest Support 40 | 40 40 26 40 40 Greatest Overweight (x) 1 | . 1 . . 1 Average Overweight (x) . | . . . . . Largest Inventory Capacity 20 | 8 10 10 10 20 Average Capacity 11 | 7 9 10 10 18 Most Carried 15 | 6 10 10 10 15 Average Carried 9 | 3 9 10 9 12 Final Capacity 20 | 8 10 10 10 20 Final Carried 13 | 6 10 10 10 13 Class Distribution -------------------- 64% | Mutant 35% | Commander-Mutant Dominant Class ---------------- Mutant | -10/Materials Mutant | -10/Mines Commander-Mutant | -10/Exiles Commander-Mutant | -9/Mines Resources | -11 -10 -10 -10 -9 ----------- Run | Yrd Mat Min Exi Min Matter Collected 960 | 291 283 . 347 39 Remotely . | . . . . . Salvage Created 906 | 162 355 . 389 . Parts 44 | 9 24 . 11 . Haulers Intercepted 2 | . 2 . . . Recyclers Shooed 1 | . . . . 1 Parts Field Recycled . | . . . . . Retrieved Matter . | . . . . . Parts Self-Destructed . | . . . . . Prevented . | . . . . . Kills | -11 -10 -10 -10 -9 ------- Run | Yrd Mat Min Exi Min Combat Hostiles Destroyed 10 | . 10 . . . Guns 9 | . 9 . . . AOE 1 | . 1 . . . Classes Destroyed 7 | 3 4 . . . Worker 2 | 2 . . . . Builder 1 | . 1 . . . Tunneler 1 | 1 . . . . Hauler 2 | . 2 . . . Recycler 1 | 1 . . . . Swarmer 5 | . 5 . . . Grunt 5 | . 5 . . . Best Kill Streak 4 | 4 3 . . . Combat Bots Only 3 | . 3 . . . Max Kills in Single Turn 2 | 1 2 . . . Gunslinging . | . . . . . Exploded 1 | . 1 . . . Melee . | . . . . . Uniques/NPCs Destroyed . | . . . . . Combat | -11 -10 -10 -10 -9 -------- Run | Yrd Mat Min Exi Min Hostile Shots Fired 60 | . 41 . . 19 Missed 9 | . 9 . . . Damage Taken 1169 | . 394 . . 775 Core 263 | . 60 . . 203 Absorbed by Shields . | . . . . . Core Remaining (%) 100 | 100 . . . . Volleys Fired 60 | 7 45 . . 8 Largest 2 | 2 2 . . 2 Hottest 80 | 60 80 . . 51 Shots Fired 117 | 14 88 . . 15 Gun 116 | 14 87 . . 15 Cannon . | . . . . . Launcher 1 | . 1 . . . Special . | . . . . . Kinetic 76 | 7 54 . . 15 Thermal 34 | 7 27 . . . Explosive 1 | . 1 . . . Electromagnetic 6 | . 6 . . . Robot Hit Streak 10 | 9 10 . . 3 Robot Miss Streak 4 | 1 4 . . 2 Penetration Max . | . . . . . Secondary Targets 2 | . 2 . . . Max Gunslinging Chain 1 | . 1 . . . Shots Hit Robots 98 | 10 54 . 26 8 Core Hits 39 | 5 21 . 11 2 Critical Kills . | . . . . . Critical Parts Destroyed 1 | . 1 . . . Critical Strikes 1 | . 1 . . . Destroy 1 | . 1 . . . Melee Attacks 30 | . 3 . 27 . Impact . | . . . . . Slashing 30 | . 3 . 27 . Piercing . | . . . . . Sneak Attacks 1 | . . . 1 . Combat Hostiles 1 | . . . 1 . Follow-up Attacks . | . . . . . Damage Inflicted 2474 | 112 953 . 1273 136 Guns 987 | 112 739 . . 136 Cannons . | . . . . . Explosions 190 | . 190 . . . Melee 1297 | . 24 . 1273 . Ramming . | . . . . . Kinetic 600 | 35 429 . . 136 Thermal 470 | 77 393 . . . Explosive 40 | . 40 . . . Electromagnetic 67 | . 67 . . . Impact . | . . . . . Slashing 1297 | . 24 . 1273 . Piercing . | . . . . . Highest Corruption . | . . . . . Average Corruption . | . . . . . Corruption Purged . | . . . . . Corruption Blocked . | . . . . . Overload Shots . | . . . . . Overflow Damage 132 | . 29 . 103 . Projectiles . | . . . . . Explosions 29 | . 29 . . . Melee 103 | . . . 103 . Knockbacks . | . . . . . Impact . | . . . . . Kinetic . | . . . . . Secondary . | . . . . . Self-Inflicted Damage 74 | . 74 . . . Shots 1 | . 1 . . . Rammed 1 | . . . . 1 Targets Rammed 1 | . . . . 1 Kicked . | . . . . . Crushed . | . . . . . Highest Temperature 117 | . 117 . . 20 Average Temperature 20 | . 22 . . 8 Received Heat Transfer 99 | . 93 . . 6 Siege Activations . | . . . . . Robots Corrupted . | . . . . . Combat Hostiles . | . . . . . Parts Fried . | . . . . . Impact Corruptions . | . . . . . Robots Melted . | . . . . . Combat Hostiles . | . . . . . Parts Melted 1 | . 1 . . . Heat Transferred 800 | 175 625 . . . Parts Sabotaged . | . . . . . Parts Stolen . | . . . . . Parts Stripped . | . . . . . Power Chain Reactions 2 | . 2 . . . Alert | -11 -10 -10 -10 -9 ------- Run | Yrd Mat Min Exi Min Peak Influence 206 | 20 206 8 . 183 Initial 13 | . 13 8 . . Average 51 | 6 60 8 . 52 Maximum Alert Level 1 | . 1 . . . Low Security (%) 99 | 100 98 100 . 100 Level 1 . | . 1 . . . Level 2 . | . . . . . Level 3 . | . . . . . Level 4 . | . . . . . Level 5 . | . . . . . High Security . | . . . . . Max Security . | . . . . . Squads Dispatched 2 | . 2 . . . Investigation 2 | . 2 . . . Extermination . | . . . . . Reinforcement . | . . . . . Assault . | . . . . . Garrison . | . . . . . Intercept . | . . . . . Searches Triggered . | . . . . . Construction Impeded . | . . . . . Haulers Reinforced . | . . . . . Active Scanning Responses . | . . . . . Cargo Convoy Interrupts . | . . . . . Stealth | -11 -10 -10 -10 -9 --------- Run | Yrd Mat Min Exi Min Distress Signals 2 | . 2 . . . Communications Jammed . | . . . . . Distress Signals . | . . . . . Times Spotted 42 | . 28 . . 14 Peak Tracking Total 5 | . 5 . . 4 Tactical Retreats 1 | . . . . 1 Traps | -11 -10 -10 -10 -9 ------- Run | Yrd Mat Min Exi Min Traps Triggered 3 | . 3 . . . Indirectly . | . . . . . Trap Hack Attempts . | . . . . . Triggered . | . . . . . Disarmed . | . . . . . Reprogrammed . | . . . . . Reused . | . . . . . Traps Extracted . | . . . . . Installed . | . . . . . Triggered . | . . . . . Machines | -11 -10 -10 -10 -9 ---------- Run | Yrd Mat Min Exi Min Machines Disabled 4 | . 2 . . 2 Max in Single Turn 2 | . 2 . . . Machines Repaired . | . . . . . Machines Dismantled . | . . . . . Machines Sabotaged . | . . . . . Overloaded Fab Kills . | . . . . . Hacking | -11 -10 -10 -10 -9 --------- Run | Yrd Mat Min Exi Min Machines Accessed 9 | . 7 . 2 . Terminals 7 | . 7 . . . Fabricators . | . . . . . Repair Stations . | . . . . . Recycling Units . | . . . . . Scanalyzers . | . . . . . Garrison Access . | . . . . . Total Hacks 32 | . 26 . 6 . Successful 21 | . 15 . 6 . Failed 11 | . 11 . . . Catastrophic 2 | . 2 . . . Database Lockouts . | . . . . . Manual 15 | . 15 . . . Terminals 26 | . 26 . . . Fabricators . | . . . . . Repair Stations . | . . . . . Recycling Units . | . . . . . Scanalyzers . | . . . . . Garrison Access . | . . . . . Terminal Hacks 15 | . 9 . 6 . Record 6 | . . . 6 . Robot Analysis 3 | . 3 . . . Prototype ID Bank 3 | . 3 . . . Terminal Index 1 | . 1 . . . Alert Level 1 | . 1 . . . Locate Traps 1 | . 1 . . . Fabricator Hacks . | . . . . . Repair Station Hacks . | . . . . . Recycling Unit Hacks . | . . . . . Scanalyzer . | . . . . . Garrison Access Hacks . | . . . . . Unauthorized Hacks 6 | . 6 . . . Terminals 6 | . 6 . . . Track 1 | . 1 . . . Botnet 5 | . 5 . . . Fabricators . | . . . . . Repair Stations . | . . . . . Recycling Units . | . . . . . Scanalyzers . | . . . . . Garrison Access . | . . . . . Data Cores Recovered . | . . . . . Used . | . . . . . Hacking Detections 7 | . 7 . . . Full Trace Events 1 | . 1 . . . Feedback Events . | . . . . . Feedback Blocked . | . . . . . Robot Schematics Acquired . | . . . . . Robots Built . | . . . . . Authchips . | . . . . . Time . | . . . . . Total Robot Build Rating . | . . . . . Part Schematics Acquired . | . . . . . Parts Built . | . . . . . Authchips . | . . . . . Time . | . . . . . Total Part Build Rating . | . . . . . Parts Repaired . | . . . . . Time . | . . . . . Parts Recycled . | . . . . . Recycled Matter . | . . . . . Retrieved Matter . | . . . . . Retrieved Components . | . . . . . Parts Scanalyzed . | . . . . . Part Schematics Acquired . | . . . . . Parts Damaged . | . . . . . Bothacking | -11 -10 -10 -10 -9 ------------ Run | Yrd Mat Min Exi Min Used RIF Installer . | . . . . . Robots Hacked . | . . . . . Non-combat . | . . . . . Combat . | . . . . . Robot Hacks Applied . | . . . . . Relay Couplers Released . | . . . . . Fabnet Peak Effective % . | . . . . . Robots Rewired 5 | . . . 5 . Allies Hacked . | . . . . . Hacks Repelled . | . . . . . Allies | -11 -10 -10 -10 -9 -------- Run | Yrd Mat Min Exi Min Total Allies 8 | . . 3 5 . Largest Group 8 | . . 3 8 8 Highest-Rated Group 93 | . . 40 93 93 Highest-Rated Ally 21 | . . 16 21 21 Total Orders . | . . . . . Ally Attacks 50 | . . . . 50 Total Damage 514 | . . . . 514 Kills 12 | . . . . 12 Allies Corrupted . | . . . . . Allies Melted . | . . . . . Intel | -11 -10 -10 -10 -9 ------- Run | Yrd Mat Min Exi Min Robot Analysis Total 3 | . 3 . . . Derelict Logs Recovered 1 | . . . . 1 Drone Launches . | . . . . . Drone Recoveries . | . . . . . Exploration | -11 -10 -10 -10 -9 ------------- Run | Yrd Mat Min Exi Min Turns Passed 3589 | 171 1576 153 828 861 Spaces Moved 1795 | 81 678 151 523 362 Core 2 | 2 . . . . Treads 1377 | 79 676 . 260 362 Legs . | . . . . . Wheels 416 | . 2 151 263 . Hover . | . . . . . Flight . | . . . . . Fastest Speed 50 | 50 90 90 90 160 Average Speed 171 | 157 200 90 124 221 Slowest Speed 240 | 160 240 90 160 240 Overloaded Moves . | . . . . . Propulsion Burnouts . | . . . . . Robots Hopped . | . . . . . Cave-ins Triggered . | . . . . . Exploration Rate (%) 59 | 5 92 38 92 69 Regions Visited 4 Branch Regions 3 Pre-discovered Areas 2 | . . . 1 1 Known Exits Taken 3 | . 1 1 1 . Unknown Exits Taken 1 | 1 . . . . Scrap Searched 1 | . . . . 1 Spaces Dug 10 | . 10 . . . Terrain Destroyed 28 | . 26 . . 2 Melee 2 | . 2 . . . Projectile 2 | . . . . 2 AOE 24 | . 24 . . . Terrain Rammed . | . . . . . Walls Destroyed . | . . . . . Machines Disabled . | . . . . . Actions | -11 -10 -10 -10 -9 --------- Run | Yrd Mat Min Exi Min Total 2128 | 108 799 167 646 408 Wait 85 | 6 35 17 . 27 Move 1791 | 80 677 150 522 362 Hop . | . . . . . Pick Up 27 | 7 10 . 5 5 Fast Attach 16 | 7 7 . 2 . Attach 3 | . 2 . . 1 Detach . | . . . . . Swap 17 | . 13 . 2 2 Drop 17 | 1 7 . 7 2 Fire 60 | 7 45 . . 8 Melee 30 | . 3 . 27 . Ram . | . . . . . Kick . | . . . . . Crush 1 | . . . . 1 Escape Stasis . | . . . . . Rewire 81 | . . . 81 . Trap . | . . . . . Miscellaneous . | . . . . . Route ------- -11/Scrapyard -10/Materials (discovered 5 exits: *Mat x3 / *Min x2) -10/Mines -10/Exiles -9/Mines (discovered 2 exits: *Mat x2) History --------- Turn | Location | Event 27 | -11/Scrapyard | Discovered new exit (range 14) 172 | -11/Scrapyard | Entered Materials 172 | -10/Materials | Discovered new exit (range 15) 268 | -10/Materials | Discovered new exit (range 15) 322 | -10/Materials | Build established: Mutant 370 | -10/Materials | Discovered new exit (range 10) 915 | -10/Materials | Discovered new exit (range 5) 928 | -10/Materials | Identified exit to Materials 1549 | -10/Materials | Discovered exit to Materials (range 8) 1729 | -10/Materials | Identified exit to Mines 1748 | -10/Materials | Entered Mines 1782 | -10/Mines | Assisted by bots powering up and referring to "LRC-V3" 1879 | -10/Mines | Deemed a non-threat by the Exiles lab entrance 1879 | -10/Mines | Discovered new exit (range 5) 1882 | -10/Mines | Identified exit to Exiles 1901 | -10/Mines | Entered Exiles 1901 | -10/Exiles | Found Exiles lab destroyed 1901 | -10/Exiles | Accompanied by 3 allies 2242 | -10/Exiles | Build established: Commander-Mutant 2603 | -10/Exiles | Learned location of Zion (-6) 2710 | -10/Exiles | Discovered new exit (range 12) 2726 | -10/Exiles | Identified exit to Mines 2729 | -10/Exiles | Entered Mines 2729 | -9/Mines | Accompanied by 8 allies 3006 | -9/Mines | Discovered new exit (range 3) 3014 | -9/Mines | Identified exit to Materials 3026 | -9/Mines | Discovered exit to Materials (range 10) 3512 | -9/Mines | Build established: Mutant 3517 | -9/Mines | Assembled infested the area 3522 | -9/Mines | Assisted by a Guerilla fighting off Assembled 3580 | -9/Mines | Core integrity fell below 50% 3590 | -9/Mines | Destroyed by D-53 Grenadier with Mini Grenade Launcher Last Messages --------------- 03363_ T-07 Excavator is excavating. 03517_ ALERT: Infestation in the mines, dispatching Demolisher response squad. 03522_ A derelict emerges from the shadows: "You need to get out of here! I've been tracking a group of Assembled to figure out where they're coming from, and they're closing on this area, come on!" 03576_ Slug penetrates Wall. 03579_ Slug penetrates D-53 Grenadier. 03582_ Slug penetrates Wall. 03582_ Destroyed Shock Absorption System. 03583_ Lgt. Treads destroyed. 03584_ The unstable cave ceiling collapses. 03585_ Slug penetrates D-53 Grenadier. 03586_ The unstable cave ceiling collapses. 03586_ Autogun destroyed. 03588_ Slug penetrates Wall. 03588_ Ion Engine destroyed. 03590_ The unstable cave ceiling collapses. 03590_ Lgt. Treads destroyed. 03590_ as-52687 destroyed. Map ----- +----------------------------------------------------+ | ???????????????????????????????????????????? | | ???????????????????????????????????????????? | | ???????????????????????????????????????????? | | ???????????????????????????????????????????? | | ??????????####?????????????????????????????? | | ??????????# ?????????????????????????????? | | ??????????# ?????????????????????????????? | | ??????????# #?????????????????????????????? | | ?????????? #?????????????????????????????? | | ?????????## ##????????????????????????????? | | ?????????# ##???????????????????????????? | | ?????????# ##??????????????????????????? | | ????????## a #??????????????????????????? | | ??????### #??????????????????????????? | | ?????## #??????????????????????????? | | ?????# """ ##?????????????????????????? | | ?????# """ ##????????????????????????? | | ?????## """ ##???????????????????????? | | ??????## ##??????????????????????? | | ???????## ## ##?????????????????????? | | ???????## ##?# ##????????????????????? | | ??????## ##?## ##???????????????????? | | ??????# ### ##??????????????????? | | ??????# ## #???????????######## | | ??????## * ## ########????# | | ???????## a % @ d #???# | | ????????## dr #???# ### # | | ?????????###### #### #??# #?# # | | ??????????????## # #??# #????# #?# # | | ???????????????## ##?#?## #????# #?# # | | ??????####??????#######????# #????# #?# # | | ??????? #?????????????????# ##???# #?# # | | ??????? #????###??????????# ##### #?# # | | ???????# #??## ##????????## #?# | | ???????# #??# #?????#### #### #?### | | ???????# #?## ####### """ #??# #???? | | ???????# ### ## """ ##??# #???? | | ????#### #?# %%"" ##??# #???? | | ???## #?# ####### % #### #???? | | ???# ### #?????## % % #???? | | ???# ## #??????# % / #???? | | ???# ##?????# #######???? | | ???# ####### ####?????????? | | ???## ### #????????????? | | ????### ##?## ##########????????????? | | ??????######???## ##?????????????????????? | | ????????????????#####??????????????????????? | | ???????????????????????????????????????????? | | | | | +----------------------------------------------------+ Best States ------------- Heat Dissipation 25 Energy Generation 10 Energy Capacity 250 Matter Stores 300 Matter Capacity 300 Sight Range 16 Terrain Scan Density 10 Evasion (%) 42 Recoil Reduction 2 Item Schematics ----------------- None Robot Schematics ------------------ None Fabricated ------------ Nothing Alien Tech Used ----------------- None Achievements -------------- None Challenges ------------ None Game ------ Seed ReflectivePiercingLance Manual? 0 Play Time 00:21:59 Cumulative 94.4 hours Start 2024.06.27 @ 13:25:47 End 2024.06.27 @ 13:48:53 Sessions 1 Manual Loads 0 Difficulty Rogue Special Mode None Game No. 52 Rogue 52 Adventurer 0 Explorer 0 Win Type - Total 1 Types 1/0/0/0/0/0/0/0/0 Lore% 52 Gallery% 56 Achievement% 44 Wizard Run 0 Options --------- Layout 0 ASCII 0 Keyboard 0 Movement Mouse Keybinds 0 Fullscreen 2 Font 18/SmallcapsGlow Map View 76x50 Zoom Use 0% Tactical HUD 1 Map Filters NONE Filters NONE Steam 1 RUN: 9b5ef727-89fe-4636-8d05-5e88eb2f9929